fUST/lending_fUST_20250822
["ID","MTS","AMOUNT","RATE_DAILY","PERIOD"]
[380637017,1755829839013,-712.482861,0.0002569,7]
[380637018,1755829839022,-712.482861,0.0002569,7]
[380637019,1755829839031,-151.0,0.0002569,7]
[380637020,1755829839040,-151.0,0.0002569,7]
[380637021,1755829839050,-184.06939,0.0002569,7]
[380637022,1755829839060,-184.06939,0.0002569,7]
[380637023,1755829839070,-184.06939,0.0002569,7]
[380637024,1755829839079,-184.06939,0.0002569,7]
[380637025,1755829839088,-151.0,0.0002569,7]
[380637026,1755829839098,-151.0,0.0002569,7]
[380637027,1755829839108,-152.107217,0.0002569,7]
[380637028,1755829839117,-151.0,0.0002569,7]
[380637029,1755829839126,-151.0,0.0002569,7]
[380637030,1755829839136,-244.119214,0.0002569,7]
[380637031,1755829839145,-151.0,0.0002569,7]
[380637032,1755829839154,-151.0,0.0002569,7]
[380637033,1755829839165,-151.0,0.0002569,7]
[380637034,1755829839174,-151.0,0.0002569,7]
[380637035,1755829839183,-151.0,0.0002569,7]
[380637036,1755829839195,-151.0,0.0002569,7]
[380637037,1755829839204,-151.0,0.0002569,7]
[380637038,1755829839214,-151.0,0.0002569,7]
[380637039,1755829839224,-151.0,0.0002569,7]
[380637040,1755829839234,-155.644306,0.0002569,7]
[380637041,1755829839244,-117592.87409991,0.0002569,2]
[380637042,1755829839254,-500.0,0.00025721,2]
[380637043,1755829839263,-151.0,0.00025721,2]
[380637044,1755829839273,-151.0,0.00025721,2]
[380637045,1755829839283,-253.63523983,0.00025721,2]
[380637046,1755829839293,-151.86853487,0.00025721,2]
[380637047,1755829839302,-285.40828101,0.00025721,2]
[380637048,1755829839312,-266.32500348,0.00025731,2]
[380637049,1755829839321,-1719.28402986,0.00025795,2]
[380637050,1755829839330,-151.0,0.000258,7]
[380637051,1755829839339,-151.0,0.000258,7]
[380637052,1755829839349,-151.0,0.000258,7]
[380637053,1755829839358,-502.0,0.000258,5]
[380637054,1755829839368,-330.54968359,0.00025817,2]
[380637055,1755829839377,-508.94792447,0.00025886,2]
[380637056,1755829839387,-500.0,0.00025886,2]
[380637057,1755829839397,-500.0,0.00025886,2]
[380637058,1755829839407,-2037.72,0.00025888,2]
[380637059,1755829839416,-1023.72634911,0.0002591,2]
[380637060,1755829839426,-500.0,0.00025995,2]
[380637061,1755829839436,-151.0,0.00025995,2]
[380637062,1755829839447,-3000.00000047,0.00026,30]
[380637063,1755829839456,-180.71,0.00026012,7]
[380637064,1755829839465,-1719.28402986,0.00026057,2]
[380637065,1755829839475,-263.01,0.000262,7]
[380637066,1755829839484,-151.0,0.000262,17]
[380637067,1755829839494,-1017.84426164,0.00026221,2]
[380637069,1755829839503,-760.91275485,0.00026221,2]
[380637071,1755829839512,-520.30230615,0.00026221,2]
[380637073,1755829839522,-504.12665488,0.00026221,2]
[380637074,1755829839531,-522.53235109,0.00026221,2]
[380637075,1755829839540,-509.39250535,0.00026221,2]
[380637076,1755829839550,-1023.72634911,0.0002624,2]
[380637077,1755829839559,-179.779616,0.00026251,7]
[380637078,1755829839568,-151.949961,0.00026251,7]
[380637079,1755829839577,-190.93168569,0.00026261,7]
[380637080,1755829839587,-288.77211129,0.00026261,7]
[380637081,1755829839596,-151.9446863,0.00026261,7]
[380637082,1755829839605,-152.70300146,0.00026261,7]
[380637084,1755829839615,-151.0,0.00026261,7]
[380637086,1755829839624,-872.096812,0.00026261,7]
[380637087,1755829839633,-151.0,0.00026261,7]
[380637088,1755829839642,-872.096812,0.00026261,7]
[380637089,1755829839652,-248.069751,0.00026261,7]
[380637090,1755829839661,-872.096812,0.00026261,7]
[380637092,1755829839670,-872.096812,0.00026261,7]
[380637094,1755829839679,-224.961812,0.00026261,7]
[380637095,1755829839690,-224.961812,0.00026261,7]
[380637097,1755829839699,-224.961812,0.00026261,7]
[380637099,1755829839708,-224.961812,0.00026261,7]
[380637101,1755829839717,-1019.655671,0.00026261,2]
[380637103,1755829839726,-712.482861,0.00026261,7]
[380637105,1755829839735,-712.482861,0.00026261,7]
[380637107,1755829839745,-712.482861,0.00026261,7]
[380637109,1755829839754,-712.482861,0.00026261,7]
[380637111,1755829839763,-151.0,0.00026261,7]
[380637113,1755829839773,-151.0,0.00026261,7]
[380637115,1755829839782,-184.06939,0.00026261,7]
[380637117,1755829839791,-184.06939,0.00026261,7]
[380637119,1755829839800,-184.06939,0.00026261,7]
[380637121,1755829839809,-184.06939,0.00026261,7]
[380637123,1755829839819,-151.0,0.00026261,7]
[380637125,1755829839828,-151.0,0.00026261,7]
[380637127,1755829839837,-151.0,0.00026261,7]
[380637129,1755829839846,-151.0,0.00026261,7]
[380637131,1755829839855,-151.0,0.00026261,7]
[380637133,1755829839864,-151.0,0.00026261,7]
[380637135,1755829839873,-151.0,0.00026261,7]
[380637137,1755829839883,-152.200323,0.00026261,7]
[380637139,1755829839892,-151.0,0.00026261,7]
[380637141,1755829839902,-151.0,0.00026261,7]
[380637143,1755829839913,-278.552858,0.00026261,7]
[380637145,1755829839922,-500.0,0.00026269,2]
[380637147,1755829839933,-151.0,0.00026271,7]
[380637149,1755829839942,-151.0,0.00026271,7]
[380637151,1755829839951,-151.0,0.00026271,7]
[380637153,1755829839962,-152.269776,0.00026271,7]
[380637155,1755829839980,-151.0,0.00026271,7]
[380637157,1755829839989,-151.374902,0.00026271,7]
[380637159,1755829839999,-181.093183,0.00026271,7]
[380637161,1755829840007,-151.0,0.00026271,7]
[380637163,1755829840018,-283.320679,0.00026271,7]
[380637165,1755829840027,-158.34098357,0.00026273,2]
[380637166,1755829840035,-151.0,0.000263,20]
[380637168,1755829840045,-1719.28402986,0.00026319,2]
[380637170,1755829840056,-1000.0,0.00026434,2]
[380637172,1755829840065,-151.0,0.00026474,7]
[380637174,1755829840075,-183.751237,0.00026474,7]
[380637176,1755829840084,-151.0,0.00026474,7]
[380637178,1755829840093,-151.0,0.00026474,7]
[380637180,1755829840102,-151.0,0.00026474,7]
[380637182,1755829840111,-151.0,0.00026474,7]
[380637184,1755829840120,-247.229993,0.00026474,7]
[380637186,1755829840129,-152.710702,0.00026474,7]
[380637188,1755829840138,-872.096812,0.00026479,7]
[380637190,1755829840147,-226.63381477,0.00026479,7]
[380637192,1755829840157,-872.096812,0.00026479,7]
[380637194,1755829840166,-872.096812,0.00026479,7]
[380637196,1755829840175,-872.096812,0.00026479,7]
[380637198,1755829840185,-224.961812,0.00026479,7]
[380637200,1755829840195,-224.961812,0.00026479,7]
[380637202,1755829840204,-224.961812,0.00026479,7]
[380637204,1755829840214,-224.961812,0.00026479,7]
[380637206,1755829840224,-712.482861,0.00026479,7]
[380637208,1755829840234,-712.482861,0.00026479,7]
[380637210,1755829840243,-712.482861,0.00026479,7]
[380637212,1755829840253,-712.482861,0.00026479,7]
[380637214,1755829840263,-151.0,0.00026479,7]
[380637216,1755829840272,-151.0,0.00026479,7]
[380637218,1755829840281,-184.06939,0.00026479,7]
[380637220,1755829840290,-184.06939,0.00026479,7]
[380637222,1755829840299,-184.06939,0.00026479,7]
[380637224,1755829840308,-184.06939,0.00026479,7]
[380637226,1755829840317,-151.0,0.00026479,7]
[380637228,1755829840327,-151.0,0.000265,14]
[380637230,1755829840336,-500.0,0.00026543,2]
[380637232,1755829840347,-151.0,0.00026549,7]
[380637234,1755829840357,-194.073503,0.00026549,7]
[380637236,1755829840367,-151.0,0.00026549,7]
[380637238,1755829840376,-432.57034683,0.00026559,5]
[380637240,1755829840386,-1023.72634911,0.0002657,2]
[380637242,1755829840396,-219.64881115,0.00026573,2]
[380637244,1755829840405,-501.07530627,0.00026573,2]
[380637246,1755829840415,-500.0,0.00026573,2]
[380637248,1755829840424,-501.1812645,0.00026573,2]
[380637250,1755829840432,-1719.28402986,0.00026582,2]
[380637251,1755829840443,-151.0,0.000266,16]
[380637253,1755829840452,-151.0,0.000266,15]
[380637255,1755829840461,-151.506952,0.00026638,7]
[380637257,1755829840470,-151.0,0.000267,10]
[380637259,1755829840479,-151.0,0.000267,16]
[380637261,1755829840489,-152.224263,0.00026717,7]
[380637263,1755829840498,-154.620816,0.00026717,7]
[380637265,1755829840508,-151.0,0.00026717,7]
[380637267,1755829840518,-151.0,0.00026717,7]
[380637269,1755829840528,-152.124361,0.00026801,7]
[380637271,1755829840537,-151.0,0.00026801,7]
[380637273,1755829840546,-151.0,0.00026801,7]
[380637275,1755829840555,-151.0,0.00026801,7]
[380637277,1755829840564,-872.096812,0.00026801,7]
[380637279,1755829840574,-872.096812,0.00026801,7]
[380637281,1755829840583,-872.096812,0.00026801,7]
[380637283,1755829840592,-872.09682,0.00026801,7]
[380637285,1755829840601,-224.961812,0.00026801,7]
[380637287,1755829840610,-224.961812,0.00026801,7]
[380637289,1755829840619,-224.961812,0.00026801,7]
[380637291,1755829840630,-224.961816,0.00026801,7]
[380637293,1755829840639,-712.482861,0.00026801,7]
[380637295,1755829840649,-712.482861,0.00026801,7]
[380637297,1755829840658,-712.482861,0.00026801,7]
[380637299,1755829840667,-712.48286745,0.00026801,7]
[380637301,1755829840676,-151.0,0.00026801,7]
[380637303,1755829840686,-151.0,0.00026801,7]
[380637305,1755829840696,-184.06939,0.00026801,7]
[380637307,1755829840706,-184.06939,0.00026801,7]
[380637309,1755829840715,-184.06939,0.00026801,7]
[380637311,1755829840724,-184.06939,0.00026801,7]
[380637313,1755829840733,-151.0,0.00026801,7]
[380637315,1755829840742,-186.055011,0.00026801,7]
[380637317,1755829840751,-151.0,0.00026801,7]
[380637318,1755829840761,-151.0,0.00026801,7]
[380637320,1755829840770,-151.0,0.00026801,7]
[380637322,1755829840778,-500.0,0.00026817,2]
[380637324,1755829840787,-1719.28402986,0.00026844,2]
[380637326,1755829840796,-152.88353,0.00026844,7]
[380637328,1755829840807,-160.91455311,0.0002685,5]
[380637330,1755829840815,-420.0,0.0002687,2]
[380637332,1755829840825,-378.0,0.0002687,2]
[380637334,1755829840835,-151.0,0.000269,11]
[380637336,1755829840844,-151.0,0.000269,19]
[380637338,1755829840853,-151.0,0.000269,17]
[380637340,1755829840862,-1023.72634911,0.000269,2]
[380637342,1755829840871,-5371.40887546,0.000269,2]
[380637344,1755829840880,-151.0,0.000269,11]
[380637346,1755829840890,-151.0,0.00026958,7]
[380637348,1755829840899,-255.274982,0.00026968,7]
[380637350,1755829840908,-582.01960329,0.00026973,2]
[380637352,1755829840917,-608.79553546,0.00026973,2]
[380637354,1755829840926,-501.05885522,0.00026973,2]
[380637356,1755829840935,-500.96235085,0.00026973,2]
[380637358,1755829840946,-503.29259184,0.00026973,2]
[380637360,1755829840955,-1500.0,0.00026982,2]
[380637362,1755829840967,-293016.5667637,0.00026988,15]
[380637364,1755829840976,-1283.0,0.00026992,2]
[380637366,1755829840986,-267444.51962716,0.00027,4]
[380637368,1755829840994,-6274.89,0.00027,7]
[380637370,1755829841004,-164143.37,0.00027,4]
[380637372,1755829841014,-2315.780931,0.00027,15]
[380637374,1755829841024,-19945.08,0.00027,4]
[380637376,1755829841033,-8958.92,0.00027,4]
[380637378,1755829841044,-706.89,0.00027,4]
[380637380,1755829841053,-121551.24,0.00027,4]
[380637382,1755829841062,-11748.7,0.00027,4]
[380637384,1755829841072,-238.17473681,0.00027,2]
[380637386,1755829841081,-169.416675,0.00027,28]
[380637388,1755829841091,-417.15472785,0.00027,3]
[380637390,1755829841100,-417.15472785,0.00027,3]
[380637392,1755829841109,-528.9579881,0.00027,3]
[380637394,1755829841118,-528.9579881,0.00027,3]
[380637396,1755829841128,-368.56,0.0002703,3]
[380637398,1755829841137,-448.72,0.0002703,3]
[380637400,1755829841146,-500.0,0.00027091,2]
[380637402,1755829841156,-199.0,0.000271,10]
[380637404,1755829841165,-1719.28402986,0.00027106,2]
[380637406,1755829841174,-503.10325392,0.00027121,2]
[380637408,1755829841183,-1832.47,0.000272,7]
[380637410,1755829841193,-907.85024285,0.0002732,18]
[380637412,1755829841203,-500.0,0.00027365,2]
[380637414,1755829841212,-1719.28402986,0.00027368,2]
[380637416,1755829841221,-300.0,0.00027385,20]
[380637418,1755829841231,-300.0,0.00027385,20]
[380637420,1755829841240,-300.0,0.00027397,2]
[380637422,1755829841249,-500.0,0.00027397,5]
[380637424,1755829841259,-2701.57344733,0.000274,2]
[380637426,1755829841267,-250.0,0.00027425,60]
[380637428,1755829841277,-150.0,0.0002745,60]
[380637430,1755829841286,-3097.66,0.00027468,60]
[380637432,1755829841296,-167203.01253101,0.00027468,20]
[380637621,1755829843078,-4291.56816595,0.00026471,2]
[380637622,1755829843090,-914.99639995,0.00026471,2]
[380637623,1755829843102,-862.42,0.00026471,2]
[380637624,1755829843113,-1920.273055,0.00026471,2]
[380637625,1755829843125,-586.81679521,0.00026471,2]
[380637626,1755829843134,-1157.46375104,0.00027468,20]
[380637919,1755829845919,-199.0,0.000259,30]
[380637921,1755829845929,-8576.07441611,0.00027368,2]
[380637923,1755829845938,-991897.85534385,0.00027468,20]
[380637939,1755829846087,-5659.998,0.00027468,20]
[380637942,1755829846099,-4283.70000004,0.00027468,20]
[380637944,1755829846111,-1134.9599999,0.00027468,20]
[380637946,1755829846123,-1919.6226,0.00027468,20]
[380637948,1755829846135,-860.84,0.00027468,20]
[380637951,1755829846146,-1744.34924505,0.00027468,20]
[380639467,1755830751117,-248.0234426,0.000197,2]
[380639468,1755830751138,-200.89898851,0.000198,2]
[380639481,1755831035735,-300.0,0.00019749,2]
[380639482,1755831035744,-1200.0,0.00019749,2]
[380639483,1755831035753,-504.335,0.0001975,20]
[380639484,1755831035763,-2000.0,0.0001975,20]
[380639485,1755831035771,-2000.0,0.0001975,20]
[380639486,1755831035781,-2000.0,0.0001975,20]
[380639487,1755831035790,-2000.0,0.0001975,20]
[380639488,1755831035799,-2000.0,0.0001975,20]
[380639489,1755831035808,-2000.0,0.0001975,20]
[380639490,1755831035817,-2000.0,0.0001975,20]
[380639491,1755831035827,-2000.0,0.0001975,20]
[380639492,1755831035835,-2000.0,0.0001975,20]
[380639493,1755831035844,-2000.0,0.0001975,20]
[380639494,1755831035853,-2000.0,0.0001975,20]
[380639495,1755831035862,-2000.0,0.0001975,20]
[380639496,1755831035871,-2000.0,0.0001975,20]
[380639497,1755831035880,-1897.18506043,0.0001975,20]
[380639498,1755831035891,-102.81493957,0.0001975,20]
[380639499,1755831035900,-444.46674334,0.0001975,20]
[380639589,1755831037991,-1555.53325666,0.0001975,20]
[380639590,1755831038001,-1008.20479989,0.0001975,20]
[380639591,1755831038044,-991.79520011,0.0001975,20]
[380639592,1755831038054,-2000.0,0.0001975,20]
[380639593,1755831038065,-1224.70479989,0.0001975,20]
[380639594,1755831038077,-682.81930476,0.0001975,20]
[380639595,1755831038089,-92.47589535,0.0001975,20]
[380639596,1755831038098,-409.68800592,0.0001975,20]
[380639597,1755831038109,-1590.31199408,0.0001975,20]
[380639598,1755831038118,-2000.0,0.0001975,20]
[380639599,1755831038127,-2000.0,0.0001975,20]
[380639600,1755831038136,-2000.0,0.0001975,20]
[380639601,1755831038145,-2000.0,0.0001975,20]
[380639602,1755831038153,-2000.0,0.0001975,20]
[380639603,1755831038163,-2000.0,0.0001975,20]
[380639604,1755831038172,-2000.0,0.0001975,20]
[380639605,1755831038180,-1849.68800595,0.0001975,20]
[380639606,1755831038194,-150.31199405,0.0001975,20]
[380639607,1755831038203,-2000.0,0.0001975,20]
[380639608,1755831038212,-2000.0,0.0001975,20]
[380639609,1755831038223,-2000.0,0.0001975,20]
[380639610,1755831038233,-2000.0,0.0001975,20]
[380639611,1755831038244,-2000.0,0.0001975,20]
[380639612,1755831038253,-2000.0,0.0001975,20]
[380639613,1755831038262,-343.088,0.0001975,20]
[380639614,1755831038271,-461.85009533,0.000198,2]
[380639615,1755831038282,-262.80737533,0.000198,2]
[380639616,1755831038292,-736.8214275,0.000199,2]
[380639617,1755831038302,-736.82142722,0.0002101,2]
[380639618,1755831038315,-420.0,0.0002151,2]
[380639619,1755831038324,-222.11548129,0.00021732,2]
[380639620,1755831038332,-736.82142722,0.0002212,2]
[380639621,1755831038343,-181.93664958,0.00023083,2]
[380639622,1755831038352,-736.82142722,0.00023229,2]
[380639623,1755831038361,-587.0,0.00023428,2]
[380639624,1755831038370,-160.64994143,0.00024323,5]
[380639625,1755831038380,-430.32508392,0.00024339,2]
[380639626,1755831038602,-306.4963433,0.00024339,2]
[380639627,1755831038610,-92.2336567,0.00024946,2]
[380639628,1755831038622,-1107.7663433,0.00024946,2]
[380639629,1755831038632,-1647.51517858,0.00024946,2]
[380639630,1755831038640,-3071.12129889,0.00024947,7]
[380639631,1755831038651,-530.64083125,0.00024947,7]
[380639632,1755831038662,-8898.23786986,0.00024947,7]
[380639633,1755831038671,-320.75605692,0.00024954,2]
[380639634,1755831038680,-314.51451421,0.00024954,2]
[380639635,1755831038689,-166.53618269,0.00024954,2]
[380639636,1755831038700,-333.46381731,0.00024954,2]
[380639637,1755831038709,-372.18039576,0.00024954,2]
[380639638,1755831038718,-7473.42438364,0.00024955,7]
[380639639,1755831038730,-3766.42660369,0.00024955,7]
[380639685,1755831040240,-199.0,0.0001965,20]
[380639687,1755831040250,-203.27939142,0.00024955,7]
[380639689,1755831040261,-433.33155169,0.00024955,7]
[380639982,1755831043256,-623.53806956,0.00024955,7]
[380639984,1755831043266,-156.10644825,0.00024955,8]
[380639986,1755831043276,-12500.0,0.00024964,7]
[380639988,1755831043287,-12500.0,0.00024973,7]
[380639990,1755831043297,-164.33632847,0.00024975,2]
[380639992,1755831043309,-164.33632847,0.00024975,2]
[380639994,1755831043319,-736.82142722,0.00025449,3]
[380639996,1755831043327,-370.0,0.00025517,2]
[380639998,1755831043337,-20000.0,0.0002557,2]
[380640000,1755831043347,-160.0,0.00025663,2]
[380640002,1755831043356,-215.90555669,0.00025664,2]
[380640003,1755831043365,-160.52154771,0.00025851,5]
[380640005,1755831043374,-736.82142722,0.00026559,5]
[380640007,1755831043384,-160.52154771,0.00026651,5]
[380640009,1755831043393,-200.0,0.0002674,16]
[380640011,1755831043403,-500.0,0.00026973,2]
[380640013,1755831043412,-501.67752168,0.00026973,2]
[380640015,1755831043422,-504.71428418,0.00026973,2]
[380640017,1755831043431,-501.74129702,0.00026973,2]
[380640019,1755831043440,-500.0,0.00026973,2]
[380640021,1755831043450,-500.0,0.00026973,2]
[380640023,1755831043458,-500.0,0.00026973,2]
[380640025,1755831043467,-504.50142174,0.00026973,2]
[380640027,1755831043477,-500.0,0.00026973,2]
[380640029,1755831043486,-202.32,0.0002698,3]
[380640031,1755831043496,-606.98,0.0002698,3]
[380640033,1755831043505,-53420.6717084,0.0002699,2]
[380640313,1755831046512,-13664.19885873,0.0002699,2]
[380644814,1755832232377,-596.90468553,0.000199,2]
[380644815,1755832232387,-689.44212463,0.000199,2]
[380644816,1755832232396,-596.90468549,0.0002101,2]
[380644817,1755832232407,-232.32572668,0.00021694,2]
[380644818,1755832232416,-3000.0,0.000219,2]
[380644819,1755832232426,-596.90468549,0.0002212,2]
[380644820,1755832232435,-160.0,0.00023,2]
[380644821,1755832232444,-596.90468549,0.00023229,2]
[380644822,1755832232454,-403.93608719,0.00023739,2]
[380644824,1755832232463,-6555.8954921,0.00023744,2]
[380644827,1755832232472,-403.93608719,0.0002375,2]
[380644829,1755832232482,-3727.37254181,0.00023751,2]
[380644831,1755832232493,-2828.52295029,0.00023751,2]
[380644833,1755832232503,-153.61334719,0.00024,2]
[380644835,1755832232512,-596.90468549,0.00024339,2]
[380644837,1755832232521,-301.0,0.00024658,2]
[380644839,1755832232530,-278.0,0.00024968,2]
[380644841,1755832232539,-300.0,0.00024968,2]
[380644843,1755832232548,-300.0,0.00024968,2]
[380644844,1755832232557,-1200.0,0.00024968,2]
[380644845,1755832232567,-6394.37282767,0.00024969,2]
[380644846,1755832232578,-7955.1210107,0.00024973,7]
[380644847,1755832232587,-596.90468549,0.00025449,3]
[380644848,1755832232596,-168.0,0.00025622,2]
[380644849,1755832232606,-156.106,0.00025622,10]
[380644850,1755832232616,-226.36826681,0.00025843,2]
[380644851,1755832232626,-894.5402091,0.000259,2]
[380644852,1755832232635,-7308.07166854,0.000259,2]
[380644853,1755832232645,-500.0,0.00025973,2]
[380644854,1755832232655,-500.0,0.00025973,2]
[380644855,1755832232664,-500.0,0.00025973,2]
[380644856,1755832232674,-501.1812645,0.00025973,2]
[380644857,1755832232684,-501.07530627,0.00025973,2]
[380644858,1755832232696,-500.0,0.00025973,2]
[380644859,1755832232706,-219.64881115,0.00025973,2]
[380644860,1755832232715,-500.0,0.00025973,2]
[380644861,1755832232725,-500.0,0.00025973,2]
[380644862,1755832232734,-500.0,0.00025973,2]
[380644863,1755832232743,-504.12665488,0.00025973,2]
[380644864,1755832232752,-522.53235109,0.00025973,2]
[380644865,1755832232762,-505.21653535,0.00025973,2]
[380644866,1755832232772,-509.39250535,0.00025973,2]
[380644867,1755832232781,-152.42874935,0.00025974,2]
[380644868,1755832232790,-193.22,0.0002598,3]
[380644869,1755832232799,-579.68,0.0002598,3]
[380644870,1755832232808,-443.9775782,0.00025989,2]
[380644871,1755832232820,-160.78430474,0.00025989,2]
[380644872,1755832232829,-17330.35810195,0.0002599,2]
[380644873,1755832232848,-1327.31678231,0.0002599,2]
[380644874,1755832238240,-199.0,0.0002589,10]
[380644875,1755832238250,-4389.45,0.00025989,2]
[380644876,1755832238259,-1063.87393824,0.0002599,2]
[380644880,1755832238344,-636190.0182165,0.0002599,2]
[380644881,1755832238354,-200.0,0.0002599,10]
[380644882,1755832238363,-200.0,0.0002599,10]
[380644883,1755832238373,-200.0,0.0002599,10]
[380644884,1755832238382,-200.0,0.0002599,10]
[380644885,1755832238391,-200.0,0.0002599,10]
[380644886,1755832238400,-200.0,0.0002599,10]
[380644887,1755832238409,-200.0,0.0002599,10]
[380644888,1755832238418,-211.415865,0.0002599,10]
[380644889,1755832238427,-522466.22946475,0.00026,14]
[380644890,1755832238436,-332.16,0.00026,7]
[380644891,1755832238445,-2188.1,0.00026,7]
[380644892,1755832238454,-151.0,0.00026,18]
[380644893,1755832238464,-151.0,0.00026,15]
[380644894,1755832238473,-151.0,0.00026,15]
[380644895,1755832238482,-67.28616708,0.00026,18]
[380644904,1755832240301,-83.71383292,0.00026,18]
[380644905,1755832240311,-151.0,0.00026,11]
[380644906,1755832240320,-135.28616704,0.00026,15]
[380644954,1755832243499,-15.71383296,0.00026,15]
[380644956,1755832243511,-151.0,0.00026,15]
[380644958,1755832243522,-151.0,0.00026,13]
[380644960,1755832243532,-151.0,0.00026,19]
[380644962,1755832243542,-151.0,0.00026,19]
[380644964,1755832243551,-2142.23074171,0.00026,7]
[380644966,1755832243563,-2070.38404341,0.00026,7]
[380644968,1755832243578,-2076.03,0.00026,7]
[380644972,1755832243607,-557.08618881,0.00026,7]
[380644979,1755832243663,-157.43902607,0.00026,7]
[380644981,1755832243673,-151.0,0.00026,16]
[380644983,1755832243682,-151.0,0.00026,14]
[380644985,1755832243694,-130.08454378,0.00026,14]
[380645152,1755832246407,-20.91545622,0.00026,14]
[380645153,1755832246417,-151.0,0.00026,14]
[380645154,1755832246426,-219.97958787,0.00026,14]
[380645155,1755832246435,-151.0,0.00026,14]
[380645156,1755832246445,-152.70835439,0.00026,14]
[380645157,1755832246454,-151.37226474,0.00026,14]
[380645158,1755832246463,-152.25667334,0.00026,14]
[380645159,1755832246473,-151.0,0.00026,14]
[380645160,1755832246483,-151.0,0.00026,14]
[380645161,1755832246492,-151.9773744,0.00026,14]
[380645162,1755832246502,-160.0,0.00026,7]
[380645163,1755832246512,-500.0,0.00026,14]
[380645165,1755832246521,-151.0,0.00026,14]
[380645166,1755832246530,-199.67260504,0.00026,14]
[380645167,1755832246539,-151.0,0.00026,2]
[380645168,1755832246548,-252.89488457,0.00026,14]
[380645169,1755832246558,-151.0,0.00026,14]
[380645170,1755832246567,-158.91349962,0.00026,14]
[380645171,1755832246576,-266.32500348,0.00026017,2]
[380645172,1755832246585,-894.5402091,0.0002615,2]
[380645173,1755832246594,-330.54968359,0.00026252,2]
[380645174,1755832246605,-190.93168569,0.00026274,14]
[380645175,1755832246614,-290.9094413,0.00026274,14]
[380645176,1755832246624,-266.9280227,0.00026274,14]
[380645177,1755832246635,-151.0,0.00026274,14]
[380645178,1755832246645,-500.0,0.00026274,14]
[380645179,1755832246654,-151.0,0.00026274,14]
[380645180,1755832246663,-151.0,0.00026274,2]
[380645181,1755832246673,-285.40828101,0.00026274,14]
[380645182,1755832246682,-894.5402091,0.000264,2]
[380645183,1755832246696,-168.0,0.00026455,2]
[380645185,1755832246705,-1000.0,0.00026521,2]
[380645187,1755832246714,-434.55368167,0.00026521,2]
[380645189,1755832246726,-65.44631833,0.00026521,2]
[380645191,1755832246736,-503.10325392,0.00026521,2]
[380645193,1755832246745,-508.94792447,0.00026521,2]
[380645195,1755832246755,-1020.30230615,0.00026521,2]
[380645197,1755832246764,-260.91275485,0.00026521,2]
[380645199,1755832246774,-196.63523983,0.00026548,14]
[380645200,1755832246783,-500.0,0.00026548,14]
[380645202,1755832246792,-151.0,0.00026548,14]
[380645204,1755832246802,-201.40924379,0.00026548,2]
[380645206,1755832246811,-596.90468549,0.00026559,5]
[380645208,1755832246820,-500.0,0.00026627,2]
[380645210,1755832246829,-7308.07166854,0.00026635,2]
[380645212,1755832246838,-894.5402091,0.0002665,2]
[380645214,1755832246847,-160.9356585,0.00026658,2]
[380645216,1755832246857,-155.2744988,0.00026658,2]
[380645218,1755832246866,-356.496375,0.00026658,2]
[380645220,1755832246875,-153.4243865,0.00026658,2]
[380645222,1755832246887,-581.2325412,0.00026658,2]
[380645224,1755832246898,-294.0594923,0.00026658,2]
[380645226,1755832246908,-294.0594923,0.00026658,2]
[380645228,1755832246918,-581.2325412,0.00026658,2]
[380645230,1755832246927,-160.9356585,0.00026658,2]
[380645232,1755832246937,-294.0594923,0.00026658,2]